[Event "World Junior Chess Championship U20 2022"]
[White "Salem, Muhsan Shuaib"]
[Black "Ghaith, Saeed Alnuaimi"]
[WhiteFideId "9325824"]
[BlackFideId "9309152"]
[WhiteElo "1227"]
[BlackElo "1269"]
[Result "0-1"]
[Round "05"]
[TimeControl "5400+30"]
[Date "2022.10.15"]
[WhiteClock "0:02:19"]
[BlackClock "0:30:16"]

1. c4 {[%clk 1:28:08]}  e6 {[%clk 1:30:25]} 2. g3 {[%clk 1:28:13]}  d5 {[%clk 1:30:45]} 3. d4 {[%clk 1:28:01]}  Nf6 {[%clk 1:30:52]} 4. Bg2 {[%clk 1:28:15]}  Bb4+ {[%clk 1:30:34]} 5. Bd2 {[%clk 1:28:35]}  Be7 {[%clk 1:30:59]} 6. Nf3 {[%clk 1:28:38]}  O-O {[%clk 1:31:23]} 7. O-O {[%clk 1:28:45]}  Nbd7 {[%clk 1:31:15]} 8. Nc3 {[%clk 1:27:54]}  b6 {[%clk 1:29:03]} 9. cxd5 {[%clk 1:27:35]}  exd5 {[%clk 1:29:23]} 10. Ne5 {[%clk 1:22:08]}  Bb7 {[%clk 1:29:40]} 11. Bf4 {[%clk 1:18:30]}  c6 {[%clk 1:26:54]} 12. Rc1 {[%clk 1:12:49]}  Nxe5 {[%clk 1:27:10]} 13. Bxe5 {[%clk 1:12:28]}  Nd7 {[%clk 1:27:31]} 14. Bf4 {[%clk 1:07:29]}  Re8 {[%clk 1:27:31]} 15. e4 {[%clk 0:52:50]}  dxe4 {[%clk 1:27:06]} 16. Nxe4 {[%clk 0:48:33]}  Nf8 {[%clk 1:24:45]} 17. Qd2 {[%clk 0:44:27]}  Ne6 {[%clk 1:24:35]} 18. Be3 {[%clk 0:40:23]}  Qd7 {[%clk 1:15:01]} 19. Rfd1 {[%clk 0:38:14]}  Rad8 {[%clk 1:15:14]} 20. Nc3 {[%clk 0:31:11]}  Nc7 {[%clk 1:10:05]} 21. Bf4 {[%clk 0:28:52]}  Ne6 {[%clk 1:03:20]} 22. d5 {[%clk 0:25:14]}  Nxf4 {[%clk 1:01:22]} 23. Qxf4 {[%clk 0:22:03]}  cxd5 {[%clk 0:58:46]} 24. Nxd5 {[%clk 0:21:02]}  Bxd5 {[%clk 0:43:10]} 25. Bxd5 {[%clk 0:20:27]}  Bd6 {[%clk 0:43:34]} 26. Qc4 {[%clk 0:16:59]}  Qf5 {[%clk 0:43:01]} 27. Qc2 {[%clk 0:14:29]}  Qf6 {[%clk 0:39:45]} 28. Be4 {[%clk 0:09:49]}  h5 {[%clk 0:38:20]} 29. Bg2 {[%clk 0:08:48]}  h4 {[%clk 0:38:10]} 30. Qa4 {[%clk 0:08:19]}  hxg3 {[%clk 0:37:51]} 31. hxg3 {[%clk 0:08:09]}  Re2 {[%clk 0:32:41]} 32. Qd4 {[%clk 0:04:29]}  Qe7 {[%clk 0:31:06]} 33. Rd2 {[%clk 0:03:03]}  Re1+ {[%clk 0:29:32]} 34. Rxe1 {[%clk 0:03:24]}  Qxe1+ {[%clk 0:29:58]} 35. Bf1 {[%clk 0:03:38]}  Bc7 {[%clk 0:30:02]} 36. Re2 {[%clk 0:02:19]}  Qxf1+ {[%clk 0:30:16]} 0-1


[Site "http://www.chessbomb.com"]